bitfinex-derivatives/quotes_BTCF0:USTF0_20250902
["timestamp","ask_amount","ask_price","bid_price","bid_amount"]
[1756815963253,0.254,109440.0,109430.0,3.72588572]
[1756815963557,0.02415,109460.0,109450.0,0.1878102]
[1756815963857,0.08192,109470.0,109460.0,0.1730019]
[1756815964059,0.08184,109470.0,109460.0,1.29261617]
[1756815964458,0.04796,109470.0,109460.0,1.29261617]
[1756815964663,0.04796,109470.0,109460.0,1.29969204]
[1756815965957,0.05196,109470.0,109460.0,1.30069204]
[1756815966660,0.09429,109470.0,109460.0,1.93611014]
[1756815967256,0.34429,109470.0,109460.0,1.55683085]
[1756815967457,0.98186929,109470.0,109460.0,1.55683085]
[1756815967759,0.98186929,109470.0,109460.0,0.36987587]
[1756815967958,0.98186929,109470.0,109460.0,0.00907587]
[1756815967959,1.01186929,109470.0,109460.0,0.00907587]
[1756815968153,1.01186929,109470.0,109460.0,0.93029085]
[1756815968356,0.64186929,109470.0,109460.0,0.93029085]
[1756815968553,0.73186929,109470.0,109460.0,0.86475587]
[1756815968762,1.02186929,109470.0,109460.0,0.86475587]
[1756815971659,1.02186929,109470.0,109460.0,0.86463587]
[1756815972568,1.38266929,109470.0,109460.0,0.86463587]
[1756815974071,1.38266929,109470.0,109460.0,0.00907587]
[1756815974269,1.68024858,109470.0,109460.0,0.00907587]
[1756815974567,0.37933929,109460.0,109450.0,0.85552]
[1756815974765,1.10013929,109460.0,109450.0,0.85552]
[1756815975363,1.10013929,109460.0,109450.0,0.88029]
[1756815975564,0.44256,109460.0,109450.0,0.9411]
[1756815975760,0.44256,109460.0,109450.0,1.34422009]
[1756815975761,0.3608,109460.0,109450.0,1.34422009]
[1756815975971,0.11418431,109470.0,109460.0,0.1769224]
[1756815976170,0.25618431,109470.0,109460.0,0.96530169]
[1756815976477,0.25618431,109470.0,109460.0,0.87395929]
[1756815976677,0.25618431,109470.0,109460.0,0.21558]
[1756815977174,0.25618431,109470.0,109460.0,0.08558]
[1756815977370,0.26218431,109470.0,109460.0,0.08658]
[1756815977773,0.26218431,109470.0,109460.0,1.00755498]
[1756815978071,0.7857636,109470.0,109460.0,1.00755498]
[1756815978281,0.5257636,109470.0,109460.0,1.00755498]
[1756815978580,0.43818431,109470.0,109460.0,1.00755498]
[1756815978772,0.23818431,109470.0,109460.0,1.00755498]
[1756815978972,0.24318431,109470.0,109460.0,1.00855498]
[1756815979281,0.24306431,109470.0,109460.0,1.00855498]
[1756815979776,0.49306431,109470.0,109460.0,1.00855498]
[1756815980880,1.4014436,109470.0,109460.0,0.09230498]
[1756815981980,1.69902289,109470.0,109460.0,0.002]
[1756815982480,1.4014436,109470.0,109460.0,0.002]
[1756815985082,1.1814436,109470.0,109460.0,0.02677]
[1756815985269,1.3714436,109470.0,109460.0,0.02677]
[1756815985776,0.72386431,109470.0,109460.0,0.05167]
[1756815985977,1.3614436,109470.0,109460.0,0.08758]
[1756815986483,1.1714436,109470.0,109460.0,0.08758]
[1756815986686,1.3414436,109470.0,109460.0,0.08758]
[1756815987185,1.3414436,109470.0,109460.0,0.05167]
[1756815987780,1.3414436,109470.0,109460.0,0.002]
[1756815987983,1.63902289,109470.0,109460.0,0.002]
[1756815988282,1.3414436,109470.0,109460.0,0.002]
[1756815988481,1.63902289,109470.0,109460.0,0.002]
[1756815989279,0.03433,109460.0,109450.0,0.06553498]
[1756815989480,1.10013929,109460.0,109450.0,0.06553498]
[1756815989675,1.06013929,109460.0,109450.0,0.09030498]
[1756815989874,1.06013929,109460.0,109450.0,0.06553498]
[1756815990474,0.08176,109450.0,109440.0,0.06553498]
[1756815990671,1.08580929,109450.0,109430.0,3.24848498]
[1756815990883,0.03433,109440.0,109430.0,3.19295]
[1756815991076,0.69090929,109440.0,109430.0,2.39364652]
[1756815991277,0.73913929,109440.0,109430.0,1.00627652]
[1756815991477,1.07813929,109440.0,109430.0,1.00627652]
[1756815991886,1.07713929,109440.0,109430.0,1.00627652]
[1756815992277,0.73713929,109440.0,109430.0,1.00627652]
[1756815992478,1.07913929,109440.0,109430.0,1.00727652]
[1756815992784,0.71833929,109440.0,109430.0,1.09864532]
[1756815992978,0.71833929,109440.0,109430.0,1.00727652]
[1756815993487,0.37833929,109440.0,109430.0,1.00727652]
[1756815993680,0.76333929,109440.0,109430.0,1.00827652]
[1756815994288,0.75833929,109440.0,109430.0,1.00703652]
[1756815994488,0.76533929,109440.0,109430.0,1.00803652]
[1756815994785,0.76533929,109440.0,109430.0,0.15307652]
[1756815994987,0.76533929,109440.0,109430.0,1.00803652]
[1756815995589,0.76533929,109440.0,109430.0,1.30581057]
[1756815995590,0.76557405,109440.0,109430.0,1.30581057]
[1756815996490,0.6833881,109440.0,109430.0,1.30581057]
[1756815996785,0.009,109440.0,109430.0,2.64579342]
[1756815996990,0.009,109440.0,109430.0,2.4420182]
[1756815997187,0.009,109440.0,109430.0,2.7020182]
[1756815997691,0.008,109440.0,109430.0,2.4620182]
[1756815997983,0.008,109440.0,109430.0,1.4670982]
[1756815998185,0.007,109440.0,109430.0,2.34416415]
[1756815998382,0.005,109440.0,109430.0,2.34416415]
[1756815998585,0.005,109440.0,109430.0,2.02416415]
[1756815998786,0.005,109440.0,109430.0,2.04416415]
[1756815998987,0.003,109440.0,109430.0,2.04316415]
[1756815999186,0.004,109440.0,109430.0,2.04416415]
[1756815999383,0.004,109440.0,109430.0,2.37416415]
[1756815999586,0.004,109440.0,109430.0,2.44849747]
[1756816000385,0.004,109440.0,109430.0,2.47849747]
[1756816000690,0.004,109440.0,109430.0,1.7463501]
[1756816000989,0.004,109440.0,109430.0,2.11849747]
[1756816001192,0.004,109440.0,109430.0,2.09849747]
[1756816001586,0.004,109440.0,109430.0,2.11849747]
[1756816002982,0.08321,109440.0,109430.0,0.5301013]
[1756816003189,0.08321,109440.0,109430.0,1.3847813]
[1756816003389,0.08321,109440.0,109430.0,1.0239813]
[1756816004079,0.08321,109440.0,109430.0,1.1153504]
[1756816004282,0.05074,109440.0,109430.0,1.0239813]
[1756816004484,0.08321,109440.0,109430.0,0.94206]
[1756816005090,0.08321,109440.0,109430.0,1.0334291]
[1756816005292,0.05074,109440.0,109430.0,1.3942291]
[1756816005887,0.05074,109440.0,109430.0,1.6599291]
[1756816006396,0.02795,109440.0,109430.0,1.2990491]
[1756816007186,0.004,109440.0,109430.0,1.6598491]
[1756816007691,0.004,109440.0,109430.0,1.20768]
[1756816007897,0.004,109440.0,109430.0,1.2990491]
[1756816009093,0.03647,109440.0,109430.0,1.20768]
[1756816009399,0.004,109440.0,109430.0,2.11391787]
[1756816009986,0.004,109440.0,109430.0,2.03199657]
[1756816013689,0.004,109440.0,109430.0,2.05199657]
[1756816013897,0.004,109440.0,109430.0,1.6798492]
[1756816014094,0.004,109440.0,109430.0,2.05199657]
[1756816015295,0.004,109440.0,109430.0,2.35199657]
[1756816015491,0.004,109440.0,109430.0,2.68395787]
[1756816016094,0.004,109440.0,109430.0,2.60203657]
[1756816016289,0.004,109440.0,109430.0,2.71686839]
[1756816017600,0.004,109440.0,109430.0,2.33633657]
[1756816018402,0.004,109440.0,109430.0,1.48173657]
[1756816018600,0.004,109440.0,109430.0,2.45088591]
[1756816019200,0.004,109440.0,109430.0,1.34668591]
[1756816019504,0.004,109440.0,109430.0,2.42404136]
[1756816020199,0.004,109440.0,109430.0,2.08905202]
[1756816020403,0.004,109440.0,109430.0,1.87344086]
[1756816021098,0.004,109440.0,109430.0,1.77344086]
[1756816021301,0.004,109440.0,109430.0,2.41111227]
[1756816021497,0.004,109440.0,109430.0,2.32901202]
[1756816022404,0.004,109440.0,109430.0,2.29901202]
[1756816023401,0.004,109440.0,109430.0,1.44493202]
[1756816023605,0.004,109440.0,109430.0,2.56463202]
[1756816024702,0.004,109440.0,109430.0,1.51558136]
[1756816024907,0.004,109440.0,109430.0,2.17178995]
[1756816025106,0.004,109440.0,109430.0,2.38178995]
[1756816026003,0.004,109440.0,109430.0,2.67946136]
[1756816027599,0.004,109440.0,109430.0,2.92946136]
[1756816027795,0.004,109440.0,109430.0,3.22713277]
[1756816028306,0.00023536,109440.0,109430.0,3.22713277]
[1756816030210,0.00023536,109440.0,109430.0,2.92946136]
[1756816030599,0.00023536,109440.0,109430.0,3.22713277]
[1756816031307,0.00023536,109440.0,109430.0,2.07558136]
[1756816031508,0.00023536,109440.0,109430.0,2.67926136]
[1756816031710,0.00023536,109440.0,109430.0,2.67918136]
[1756816032910,0.00023536,109440.0,109430.0,2.47914136]
[1756816033097,0.00023536,109440.0,109430.0,2.36419202]
[1756816033407,0.00023536,109440.0,109430.0,2.34094764]
[1756816034312,0.00023536,109440.0,109430.0,2.71304608]
[1756816034516,0.00023536,109440.0,109430.0,3.07792783]
[1756816034710,0.16090697,109480.0,109470.0,0.08363]
[1756816034915,0.16090697,109480.0,109470.0,2.06698564]
[1756816035116,0.08944155,109480.0,109470.0,2.06698564]
[1756816035416,0.05697155,109480.0,109470.0,2.06698564]
[1756816035611,0.05697155,109480.0,109470.0,1.82698564]
[1756816035801,0.05697155,109480.0,109470.0,1.94698564]
[1756816036007,0.02809,109480.0,109470.0,1.94798564]
[1756816036413,0.005,109480.0,109470.0,1.94798564]
[1756816036803,0.005,109480.0,109470.0,1.94794564]
[1756816037216,0.0140753,109480.0,109470.0,1.73660994]
[1756816037404,0.005,109480.0,109470.0,1.73860994]
[1756816037609,0.014,109480.0,109470.0,1.73860994]
[1756816037813,0.014,109480.0,109470.0,1.67296844]
[1756816038011,0.014,109480.0,109470.0,1.76430414]
[1756816038216,0.264,109480.0,109470.0,1.76430414]
[1756816038509,0.264,109480.0,109470.0,2.16635602]
[1756816038918,0.264,109480.0,109470.0,2.22715602]
[1756816039118,0.26384,109480.0,109470.0,2.22715602]
[1756816039519,0.26384,109480.0,109470.0,1.37371602]
[1756816039726,0.26384,109480.0,109470.0,2.22707602]
[1756816040127,0.26384,109480.0,109470.0,1.35371602]
[1756816040330,0.26384,109480.0,109470.0,2.20707602]
[1756816041529,0.26384,109480.0,109470.0,2.54707602]
[1756816042227,0.26384,109480.0,109470.0,2.22707602]
[1756816042526,0.01384,109480.0,109470.0,2.51707602]
[1756816042830,0.01384,109480.0,109470.0,3.40487446]
[1756816043029,0.01384,109480.0,109470.0,3.03277602]
[1756816044231,0.01384,109480.0,109470.0,2.72277602]
[1756816044428,0.01384,109480.0,109470.0,3.07277602]
[1756816044624,0.01384,109480.0,109470.0,2.72277602]
[1756816044829,0.01384,109480.0,109470.0,3.04277602]
[1756816046525,0.01384,109480.0,109470.0,2.18941602]
[1756816046723,0.009,109480.0,109470.0,3.04265602]
[1756816047628,0.009,109480.0,109470.0,1.72941602]
[1756816047927,0.009,109480.0,109470.0,2.55691602]
[1756816048126,0.08013,109490.0,109480.0,0.1375579]
[1756816048327,0.08013,109490.0,109480.0,0.97334155]
[1756816048829,0.08013,109490.0,109480.0,1.73521365]
[1756816049328,0.08013,109490.0,109480.0,1.82654155]
[1756816049833,0.08613,109490.0,109480.0,1.36411521]
[1756816050030,0.08613,109490.0,109480.0,1.73621365]
[1756816050231,0.08813,109490.0,109480.0,1.73721365]
[1756816051433,0.08813,109490.0,109480.0,0.88401365]
[1756816051734,0.08813,109490.0,109480.0,1.36507521]
[1756816052325,0.08813,109490.0,109480.0,1.00427521]
[1756816052531,0.08813,109490.0,109480.0,1.36507521]
[1756816053232,0.08813,109490.0,109480.0,1.63077521]
[1756816054139,0.08793,109490.0,109480.0,1.26997521]
[1756816054725,0.33793,109490.0,109480.0,1.00423521]
[1756816054930,0.33793,109490.0,109480.0,0.93875]
[1756816055526,0.95547314,109490.0,109480.0,1.23629314]
[1756816056131,0.33793,109490.0,109480.0,1.23629314]
[1756816056327,1.01547314,109490.0,109480.0,1.23629314]
[1756816057533,1.01547613,109490.0,109480.0,0.93875]
[1756816058932,0.94547613,109490.0,109480.0,0.93875]
[1756816059133,0.33793,109490.0,109480.0,0.93875]
[1756816059335,1.00547613,109490.0,109480.0,0.93875]
[1756816059828,1.00547613,109490.0,109480.0,0.93879]
[1756816060033,0.70793,109490.0,109480.0,0.93879]
[1756816060940,0.67793,109490.0,109480.0,0.93879]
[1756816061137,0.97547613,109490.0,109480.0,0.93879]
[1756816061440,0.98547613,109490.0,109480.0,0.93879]
[1756816061637,0.98547613,109490.0,109480.0,1.00427521]
[1756816062635,0.98547613,109490.0,109480.0,0.93879]
[1756816063143,0.98547613,109490.0,109480.0,1.00427521]
[1756816063440,0.30793,109490.0,109480.0,1.39314934]
[1756816063742,0.30566,109490.0,109480.0,1.39314934]
[1756816064531,0.258,109490.0,109480.0,1.39314934]
[1756816065640,0.258,109490.0,109480.0,1.75394934]
[1756816065843,0.008,109490.0,109480.0,1.75394934]
[1756816066036,0.008,109490.0,109480.0,1.70846413]
[1756816066237,0.008,109490.0,109480.0,2.28846413]
[1756816066441,0.008,109490.0,109480.0,1.95846413]
[1756816066641,0.008,109490.0,109480.0,2.02051601]
[1756816066946,0.008,109490.0,109480.0,2.36051601]
[1756816067239,0.008,109490.0,109480.0,2.27846413]
[1756816068045,0.008,109490.0,109480.0,2.36057432]
[1756816068440,0.008,109490.0,109480.0,2.34057432]
[1756816069138,0.00796,109490.0,109480.0,2.34049432]
[1756816069539,0.00796,109490.0,109480.0,2.06049432]
[1756816069737,0.00796,109490.0,109480.0,0.90982819]
[1756816069944,0.00796,109490.0,109480.0,2.06033432]
[1756816070345,0.00796,109490.0,109480.0,1.97822413]
[1756816070845,0.00796,109490.0,109480.0,1.81031318]
[1756816071039,0.00796,109490.0,109480.0,2.07601318]
[1756816072338,0.00796,109490.0,109480.0,1.77846705]
[1756816072537,0.00796,109490.0,109480.0,2.07601318]
[1756816072741,0.00796,109490.0,109480.0,1.696378]
[1756816072948,0.00796,109490.0,109480.0,1.14096413]
[1756816073149,0.00796,109490.0,109480.0,1.99384413]
[1756816076843,0.00796,109490.0,109480.0,2.36590585]
[1756816080249,0.00796,109490.0,109480.0,2.28384413]
[1756816080655,0.00796,109490.0,109480.0,2.85024353]
[1756816080861,0.36315,109530.0,109520.0,0.08523]
[1756816080862,0.37065,109530.0,109520.0,0.08523]
[1756816081156,0.77310836,109530.0,109520.0,1.43112478]
[1756816081655,0.41230836,109530.0,109520.0,1.43112478]
[1756816082257,0.41230836,109530.0,109520.0,1.79192478]
[1756816082949,0.41230836,109530.0,109520.0,1.43112478]
[1756816083353,0.41230836,109530.0,109520.0,1.79192478]
[1756816083554,0.41230836,109530.0,109520.0,1.43112478]
[1756816083956,0.41730836,109530.0,109520.0,1.43212478]
[1756816084156,0.42018836,109530.0,109520.0,1.43212478]
[1756816085158,0.42018836,109530.0,109520.0,1.79280478]
[1756816085356,0.42018836,109530.0,109520.0,1.43200478]
[1756816085658,0.42018836,109530.0,109520.0,1.88409938]
[1756816085851,0.41045836,109530.0,109520.0,1.88409938]
[1756816086258,0.40141177,109530.0,109520.0,1.88409938]
[1756816086850,0.008,109530.0,109520.0,1.88409938]
[1756816088659,0.08093709,109530.0,109520.0,1.88409938]
[1756816088867,0.008,109530.0,109520.0,1.88409938]
[1756816089053,0.008,109530.0,109520.0,0.94020478]
[1756816089261,0.01735,109530.0,109520.0,0.94020478]
[1756816089562,0.01735,109530.0,109520.0,0.44940478]
[1756816089764,0.34735,109530.0,109520.0,1.30184478]
[1756816089954,0.01735,109530.0,109520.0,1.30184478]
[1756816090154,0.01735,109530.0,109520.0,1.23621613]
[1756816090356,0.01735,109530.0,109520.0,0.08623]
[1756816090554,0.38735,109530.0,109520.0,0.38377613]
[1756816090758,0.68489613,109530.0,109520.0,0.93863]
[1756816090962,0.01735,109530.0,109520.0,0.08623]
[1756816091150,0.33735,109530.0,109520.0,0.93863]
[1756816091761,0.01735,109530.0,109520.0,0.93863]
[1756816092966,0.0896883,109530.0,109520.0,0.93863]
[1756816093159,0.01735,109530.0,109520.0,0.93863]
[1756816093660,0.01735,109530.0,109520.0,1.06863]
[1756816093866,0.008,109530.0,109520.0,1.45747073]
[1756816094164,0.01023,109530.0,109520.0,1.36617613]
[1756816094761,0.31489613,109530.0,109520.0,0.46623]
[1756816095066,0.96815,109530.0,109520.0,0.90235]
[1756816095266,1.26569613,109530.0,109520.0,0.08512]
[1756816095567,1.26569613,109530.0,109520.0,0.9374]
[1756816095870,1.26569613,109530.0,109520.0,0.05007]
[1756816096066,1.26569613,109530.0,109520.0,0.08512]
[1756816097167,1.0398822,109530.0,109520.0,0.08512]
[1756816097366,1.33742833,109530.0,109520.0,0.08512]
[1756816099171,1.33742833,109530.0,109520.0,0.001]
[1756816099467,1.63497446,109530.0,109520.0,0.001]
[1756816100871,2.48713446,109530.0,109520.0,0.001]
[1756816102662,0.00123,109520.0,109500.0,0.13359025]
[1756816102860,0.66349613,109510.0,109500.0,0.18201025]
[1756816103062,0.99349613,109510.0,109500.0,0.18201025]
[1756816103667,0.98349613,109510.0,109500.0,0.18201025]
[1756816103868,0.72595,109510.0,109500.0,0.18201025]
[1756816104075,0.35515,109510.0,109500.0,0.18201025]
[1756816104469,0.71595,109510.0,109500.0,0.18201025]
[1756816104771,0.31515,109510.0,109500.0,0.18201025]
[1756816105072,0.31615,109510.0,109500.0,0.18201025]
[1756816105264,0.001,109510.0,109500.0,0.82086768]
[1756816105468,0.001,109510.0,109500.0,0.73055638]
[1756816105771,0.003,109510.0,109500.0,0.73055638]
[1756816105974,0.003,109510.0,109500.0,0.82186768]
[1756816106673,0.00496,109510.0,109500.0,0.82186768]
[1756816107173,0.00692,109510.0,109500.0,0.82186768]
[1756816108675,0.00496,109510.0,109500.0,0.82186768]
[1756816109067,0.003,109510.0,109500.0,0.82186768]
[1756816110468,0.00496,109510.0,109500.0,0.82186768]
[1756816110773,0.00496,109510.0,109500.0,0.73055638]
[1756816110976,0.37815,109510.0,109500.0,0.3673816]
[1756816111177,0.67569613,109510.0,109500.0,0.9694216]
[1756816111974,0.30569613,109510.0,109500.0,0.9694216]
[1756816112179,0.63569613,109510.0,109500.0,0.95128]
[1756816112477,0.65640773,109510.0,109500.0,0.95128]
[1756816113372,0.3588616,109510.0,109500.0,0.09924]
[1756816113676,0.64640773,109510.0,109500.0,0.9512]
[1756816113875,0.0288616,109510.0,109500.0,0.9512]
[1756816114081,0.0256716,109510.0,109500.0,0.951]
[1756816114275,0.0256716,109510.0,109500.0,1.33985743]
[1756816114474,0.0256716,109510.0,109500.0,1.40548608]
[1756816115172,0.0271016,109510.0,109500.0,1.31417478]
[1756816115372,0.65464773,109510.0,109500.0,1.01662865]
[1756816115774,0.64464773,109510.0,109500.0,1.01662865]
[1756816116381,0.3471016,109510.0,109500.0,1.01662865]
[1756816116680,0.7079016,109510.0,109500.0,1.01662865]
[1756816116882,0.7101816,109510.0,109500.0,1.01654865]
[1756816117286,0.7101816,109510.0,109500.0,0.16466865]
[1756816117584,1.00764723,109510.0,109500.0,0.95092]
[1756816117881,1.00764723,109510.0,109500.0,1.01654865]
[1756816119488,1.00764723,109510.0,109500.0,0.16466865]
[1756816119692,1.00764723,109510.0,109500.0,0.15009865]
[1756816119993,1.55511286,109510.0,109500.0,0.04942]
[1756816120695,1.25764723,109510.0,109500.0,0.08643]
[1756816121293,0.9601816,109510.0,109500.0,0.08643]
[1756816121492,1.25764723,109510.0,109500.0,0.08643]
[1756816121796,0.9601816,109510.0,109500.0,0.08643]
[1756816121996,1.25764723,109510.0,109500.0,0.08643]
[1756816122900,1.25764723,109510.0,109500.0,0.1]
[1756816123797,1.25764723,109510.0,109500.0,0.39746563]
[1756816123999,1.00764723,109510.0,109500.0,0.1]
[1756816124294,1.00764723,109510.0,109500.0,0.39746563]
[1756816125092,1.00764723,109510.0,109500.0,0.1]
[1756816126695,1.00764723,109510.0,109500.0,0.001]
[1756816126902,1.00764723,109510.0,109500.0,0.04915]
[1756816127095,1.00764723,109510.0,109500.0,0.09973]
[1756816129100,1.00764723,109510.0,109500.0,0.08616]
[1756816129497,1.30511286,109510.0,109500.0,0.001]
[1756816130393,1.55511286,109510.0,109500.0,0.001]
[1756816131702,0.00179,109500.0,109480.0,0.10267865]
[1756816132003,0.66005563,109490.0,109480.0,0.15082865]
[1756816132197,0.99005563,109490.0,109480.0,0.15082865]
[1756816132592,0.62925563,109490.0,109480.0,0.15082865]
[1756816132791,0.99005563,109490.0,109480.0,0.15082865]
[1756816133903,1.01007821,109490.0,109480.0,0.15082865]
[1756816134508,1.01007821,109490.0,109480.0,0.15182865]
[1756816134804,0.38261258,109490.0,109480.0,0.15182865]
[1756816135102,1.06107821,109490.0,109480.0,0.15082865]
[1756816135289,1.06407821,109490.0,109480.0,0.15182865]
[1756816140699,0.68407821,109490.0,109480.0,0.15182865]
[1756816141004,1.02407821,109490.0,109480.0,0.15182865]
[1756816141205,1.02407821,109490.0,109480.0,0.44929428]
[1756816144012,1.02407821,109490.0,109480.0,0.44921428]
[1756816145111,1.02407821,109490.0,109480.0,0.15174865]
[1756816145313,1.02407821,109490.0,109480.0,0.44921428]
[1756816146813,1.02407821,109490.0,109480.0,0.38358563]
[1756816147014,1.02407821,109490.0,109480.0,0.08612]
[1756816147220,1.02407821,109490.0,109480.0,0.38358563]
[1756816147909,0.38550258,109490.0,109480.0,1.02237926]
[1756816148103,0.004,109490.0,109480.0,1.74317926]
[1756816148311,0.004,109490.0,109480.0,1.58521508]
[1756816149209,0.004,109490.0,109480.0,1.46521508]
[1756816149414,0.004,109490.0,109480.0,1.84521508]
[1756816150115,0.004,109490.0,109480.0,1.46521508]
[1756816150711,0.004,109490.0,109480.0,2.31641508]
[1756816151616,0.004,109490.0,109480.0,1.46521508]
[1756816151817,0.30193563,109490.0,109480.0,0.82642145]
[1756816152013,0.30341563,109490.0,109480.0,1.67758145]
[1756816152515,0.66341563,109490.0,109480.0,0.89209985]
[1756816152718,1.02421563,109490.0,109480.0,0.08612]
[1756816152912,1.02421563,109490.0,109480.0,0.1148284]
[1756816153111,1.02421563,109490.0,109480.0,1.0017184]
[1756816153817,1.57168126,109490.0,109480.0,0.1148284]
[1756816154513,1.27421563,109490.0,109480.0,0.1148284]
[1756816155818,1.57168126,109490.0,109480.0,0.1148284]
[1756816156023,1.57168126,109490.0,109480.0,0.0666784]
[1756816156319,1.27421563,109490.0,109480.0,0.0666784]
[1756816156515,1.57168126,109490.0,109480.0,0.0666784]
[1756816156712,1.27421563,109490.0,109480.0,0.0666784]
[1756816157718,1.57168126,109490.0,109480.0,0.0666784]
[1756816158114,1.57168126,109490.0,109480.0,0.001]
[1756816159919,1.57168126,109490.0,109480.0,0.00053]
[1756816161419,2.42256126,109490.0,109480.0,0.00053]
[1756816166523,2.72002689,109490.0,109480.0,0.00053]
[1756816166724,2.44325566,109490.0,109480.0,0.00053]
[1756816168130,1.57168126,109490.0,109480.0,0.00053]
[1756816168332,2.44312739,109490.0,109480.0,0.00053]
[1756816168528,1.59236739,109490.0,109480.0,0.00053]
[1756816168723,1.32168126,109490.0,109480.0,0.02469]
[1756816168921,1.87493563,109490.0,109480.0,0.08505]
[1756816170528,1.02421563,109490.0,109480.0,0.08505]
[1756816170925,1.87489563,109490.0,109480.0,0.08505]
[1756816171333,1.02421563,109490.0,109480.0,0.38251563]
[1756816171630,1.87489563,109490.0,109480.0,0.38251563]
[1756816171826,1.02421563,109490.0,109480.0,0.63251563]
[1756816172232,1.02226563,109490.0,109480.0,0.63251563]
[1756816172433,1.02226563,109490.0,109480.0,0.69819403]
[1756816173435,1.02226563,109490.0,109480.0,0.4007284]
[1756816176236,1.02226563,109490.0,109480.0,0.33505]
[1756816176437,0.7248,109490.0,109480.0,0.33505]
[1756816176741,1.02226563,109490.0,109480.0,0.33505]
[1756816176940,0.7248,109490.0,109480.0,0.33505]
[1756816177239,1.02226563,109490.0,109480.0,0.4007284]
[1756816178040,1.02226563,109490.0,109480.0,0.69819403]
[1756816179431,1.02235725,109490.0,109480.0,0.4007284]
[1756816180046,1.02235725,109490.0,109480.0,0.1507284]
[1756816180342,1.02235725,109490.0,109480.0,0.08505]
[1756816181238,1.02235725,109490.0,109480.0,0.1507284]
[1756816187044,0.7248,109490.0,109480.0,1.57405525]
[1756816187242,0.364,109490.0,109480.0,2.35053365]
[1756816187443,0.104,109490.0,109480.0,2.14689107]
[1756816187644,0.104,109490.0,109480.0,2.50769107]
[1756816187848,0.004,109490.0,109480.0,2.50769107]
[1756816188046,0.004,109490.0,109480.0,2.65403313]
[1756816189346,0.004,109490.0,109480.0,2.65450313]
[1756816190152,0.004,109490.0,109480.0,1.80438313]
[1756816190355,0.001,109490.0,109480.0,2.65338313]
[1756816190652,0.004,109490.0,109480.0,2.65438313]
[1756816191051,0.004,109490.0,109480.0,2.73634819]
[1756816191250,0.004,109490.0,109480.0,2.65438313]
[1756816191750,0.003,109490.0,109480.0,2.65538313]
[1756816192260,0.003,109490.0,109480.0,1.80538313]
[1756816192552,0.003,109490.0,109480.0,2.65526313]
[1756816192860,0.004,109490.0,109480.0,2.65426313]
[1756816193159,0.004,109490.0,109480.0,2.73612751]
[1756816193656,0.004,109490.0,109480.0,1.88628751]
[1756816193864,0.004,109490.0,109480.0,2.73608751]
[1756816195465,0.004,109490.0,109480.0,2.73600751]
[1756816196565,0.004,109490.0,109480.0,1.26873026]
[1756816196767,0.004,109490.0,109480.0,2.41600751]
[1756816197461,0.004,109490.0,109480.0,1.26873026]
[1756816197666,0.004,109490.0,109480.0,1.56628751]
[1756816197863,0.004,109490.0,109480.0,2.14588751]
[1756816200066,0.004,109490.0,109480.0,1.43628751]
[1756816200256,0.004,109490.0,109480.0,2.28580751]
[1756816200763,0.004,109490.0,109480.0,1.13873026]
[1756816200967,0.004,109490.0,109480.0,2.28576751]
[1756816201669,0.004,109490.0,109480.0,2.43386313]
[1756816201868,0.004,109490.0,109480.0,2.51576751]
[1756816202562,0.004,109490.0,109480.0,2.52576751]
[1756816203164,0.004,109490.0,109480.0,2.44386313]
[1756816203466,0.004,109490.0,109480.0,2.08386313]
[1756816203666,0.004,109490.0,109480.0,2.06378313]
[1756816203971,0.004,109490.0,109480.0,2.43378313]
[1756816204963,0.004,109490.0,109480.0,2.19378313]
[1756816206469,0.004,109490.0,109480.0,2.43378313]
[1756816206872,0.004,109490.0,109480.0,1.20495951]
[1756816207071,0.254,109490.0,109480.0,1.18860644]
[1756816207271,0.584,109490.0,109480.0,1.67704644]
[1756816207568,0.87855725,109490.0,109480.0,1.01768919]
[1756816207773,0.253,109490.0,109480.0,1.01868919]
[1756816207971,0.593,109490.0,109480.0,1.01868919]
[1756816208178,0.593,109490.0,109480.0,0.16944919]
[1756816208367,0.593,109490.0,109480.0,1.01864919]
[1756816208569,0.591,109490.0,109480.0,0.10289788]
[1756816208869,0.89155725,109490.0,109480.0,0.95309788]
[1756816209065,0.55055725,109490.0,109480.0,0.95309788]
[1756816209265,0.93055725,109490.0,109480.0,0.95309788]
[1756816209566,0.93055725,109490.0,109480.0,0.17044919]
[1756816209970,0.92055725,109490.0,109480.0,0.17044919]
[1756816210172,0.263,109490.0,109480.0,0.17044919]
[1756816210473,0.92055725,109490.0,109480.0,1.01960919]
[1756816210960,0.92055725,109490.0,109480.0,0.17044919]
[1756816211166,0.87055725,109490.0,109480.0,1.01956919]
[1756816211361,0.87055725,109490.0,109480.0,0.17044919]
[1756816211571,0.87055725,109490.0,109480.0,1.01956919]
[1756816211876,0.87055725,109490.0,109480.0,1.37936919]
[1756816212068,0.254,109490.0,109480.0,1.01856919]
[1756816212376,0.614,109490.0,109480.0,1.10989729]
[1756816212875,0.254,109490.0,109480.0,1.40745454]
[1756816213776,0.254,109490.0,109480.0,0.16944919]
[1756816214068,0.584,109490.0,109480.0,1.37928919]
[1756816214274,0.254,109490.0,109480.0,1.76817454]
[1756816217578,0.254,109490.0,109480.0,1.40737454]
[1756816218576,0.254,109490.0,109480.0,1.76817454]
[1756816219280,0.254,109490.0,109480.0,1.31604644]
[1756816220075,0.30155725,109490.0,109480.0,0.16944919]
[1756816220273,0.30155725,109490.0,109480.0,1.01832919]
[1756816220274,0.55155725,109490.0,109480.0,1.01832919]
[1756816220481,0.88155725,109490.0,109480.0,1.01832919]
[1756816220673,0.584,109490.0,109480.0,1.01832919]
[1756816221174,0.88155725,109490.0,109480.0,1.01832919]
[1756816221967,0.88155725,109490.0,109480.0,1.01828919]
[1756816222879,0.254,109490.0,109480.0,1.01828919]
[1756816223083,0.92155725,109490.0,109480.0,1.01828919]
[1756816223778,0.624,109490.0,109480.0,1.01828919]
[1756816224876,0.254,109490.0,109480.0,1.01828919]
[1756816225075,0.564,109490.0,109480.0,1.01828919]
[1756816225684,0.254,109490.0,109480.0,1.31828919]
[1756816227286,0.55155725,109490.0,109480.0,1.31828919]
[1756816227686,0.254,109490.0,109480.0,1.31828919]
[1756816227880,0.55155725,109490.0,109480.0,1.31828919]